bitfinex/quotes_BTCUSD_20240611
["timestamp","ask_amount","ask_price","bid_price","bid_amount"]
[1718113099729,0.1,67109.0,67104.0,0.149022]
[1718113099963,0.001,67110.0,67108.0,0.149012]
[1718113100165,0.001,67110.0,67109.0,0.15497072]
[1718113100416,0.009416,67112.0,67111.0,0.149006]
[1718113100602,0.009416,67112.0,67111.0,0.172006]
[1718113102495,0.009416,67112.0,67111.0,0.31632593]
[1718113102714,0.009416,67112.0,67111.0,0.41732593]
[1718113102715,0.015416,67112.0,67111.0,0.41732593]
[1718113102927,0.009416,67123.0,67122.0,0.148982]
[1718113103568,0.009416,67123.0,67122.0,0.481182]
[1718113103775,0.009416,67123.0,67122.0,0.504182]
[1718113104267,0.009416,67123.0,67122.0,1.04646593]
[1718113104514,0.1,67139.0,67132.0,0.14896]
[1718113104737,0.1,67139.0,67132.0,0.17196]
[1718113104963,0.01936006,67133.0,67132.0,0.17196]
[1718113105178,0.009416,67133.0,67132.0,0.14896]
[1718113105635,0.01936006,67133.0,67132.0,0.14896]
[1718113105906,0.009416,67133.0,67132.0,0.14896]
[1718113106138,0.01936006,67133.0,67132.0,0.15396]
[1718113106357,0.009416,67133.0,67132.0,0.33056]
[1718113106585,0.01936006,67133.0,67132.0,0.33056]
[1718113106820,0.009416,67133.0,67132.0,0.33756]
[1718113107050,0.01953297,67133.0,67132.0,0.33756]
[1718113107271,0.009416,67133.0,67132.0,0.43916]
[1718113107516,0.009416,67133.0,67132.0,0.48434511]
[1718113107934,0.009416,67133.0,67132.0,0.47934511]
[1718113108355,0.009416,67133.0,67132.0,0.79476504]
[1718113108569,0.009416,67146.0,67145.0,0.148931]
[1718113108777,0.009416,67146.0,67145.0,0.330531]
[1718113108980,0.01953297,67146.0,67145.0,0.330531]
[1718113109188,0.009416,67146.0,67145.0,0.330531]
[1718113109660,0.009416,67146.0,67145.0,0.60470093]
[1718113109875,0.009416,67150.0,67149.0,0.476617]
[1718113110117,0.00614997,67152.0,67151.0,0.178768]
[1718113110330,0.00614997,67152.0,67151.0,0.60468793]
[1718113110756,0.00614997,67152.0,67151.0,0.62768793]
[1718113111385,0.00614997,67152.0,67151.0,0.483368]
[1718113111603,0.00614997,67152.0,67151.0,0.460368]
[1718113112070,0.00714997,67152.0,67151.0,0.467368]
[1718113112317,0.00714997,67152.0,67151.0,0.469368]
[1718113112526,0.00614997,67152.0,67151.0,0.462368]
[1718113112735,0.00614997,67152.0,67151.0,0.54359]
[1718113112736,0.00714997,67152.0,67151.0,0.54359]
[1718113113195,0.00614997,67152.0,67151.0,0.53959]
[1718113113404,0.00614997,67152.0,67151.0,0.002]
[1718113113405,0.20614997,67152.0,67151.0,0.002]
[1718113113622,0.30614997,67152.0,67151.0,0.002]
[1718113113825,0.33658523,67152.0,67151.0,0.002]
[1718113114997,0.33658523,67152.0,67137.0,0.7318]
[1718113114998,0.2,67139.0,67132.0,0.1816]
[1718113115210,0.1,67144.0,67133.0,0.620757]
[1718113115211,0.2,67138.0,67133.0,0.620757]
[1718113115438,0.2,67142.0,67133.0,0.4718]
[1718113115660,0.2,67143.0,67136.0,0.148951]
[1718113115884,0.21043526,67141.0,67136.0,0.148951]
[1718113116095,0.3,67144.0,67136.0,0.148951]
[1718113116321,0.01043526,67140.0,67136.0,0.148951]
[1718113116533,0.001,67138.0,67136.0,0.330551]
[1718113116957,0.01024796,67137.0,67136.0,0.330551]
[1718113117146,0.01024796,67137.0,67136.0,0.430551]
[1718113117368,0.2,67138.0,67136.0,0.430551]
[1718113117591,0.2,67134.0,67133.0,0.4718]
[1718113117800,0.3,67134.0,67133.0,0.4718]
[1718113118001,0.32,67134.0,67133.0,0.4718]
[1718113118207,0.33024796,67134.0,67133.0,0.4718]
[1718113118424,0.31024796,67134.0,67133.0,0.4718]
[1718113119358,0.31124796,67134.0,67133.0,0.4778]
[1718113119705,0.33124796,67134.0,67133.0,0.4778]
[1718113119922,0.33124796,67134.0,67133.0,0.4738]
[1718113119923,0.33024796,67134.0,67133.0,0.4738]
[1718113120164,0.62352289,67134.0,67133.0,0.004]
[1718113120383,0.47456789,67134.0,67133.0,0.004]
[1718113121212,0.45456789,67134.0,67133.0,0.004]
[1718113121604,0.25456789,67134.0,67133.0,0.004]
[1718113122375,0.01024796,67134.0,67133.0,0.004]
[1718113123219,0.33024796,67134.0,67133.0,0.004]
[1718113123863,0.40624796,67134.0,67133.0,0.004]
[1718113124277,0.55056789,67134.0,67133.0,0.004]
[1718113125071,1.09289162,67134.0,67133.0,0.004]
[1718113125280,1.03078285,67134.0,67133.0,0.004]
[1718113125505,0.95862289,67134.0,67133.0,0.004]
[1718113125907,0.95862289,67134.0,67133.0,0.002]
[1718113126481,0.1,67121.0,67115.0,0.16664606]
[1718113126914,0.3,67121.0,67116.0,0.07727068]
[1718113127145,0.01007411,67120.0,67117.0,0.07727068]
[1718113127354,0.01007411,67120.0,67118.0,0.07727068]
[1718113127560,0.01007411,67120.0,67119.0,0.07727068]
[1718113128444,0.1,67125.0,67122.0,0.148982]
[1718113128623,0.1,67125.0,67123.0,0.07727068]
[1718113128855,0.1,67125.0,67124.0,0.07727068]
[1718113129279,0.1,67125.0,67124.0,0.22624868]
[1718113129481,0.1,67125.0,67124.0,0.07727068]
[1718113129908,0.1,67130.0,67126.0,0.148973]
[1718113130157,0.1,67130.0,67127.0,0.07727068]
[1718113130370,0.1,67131.0,67128.0,0.07727068]
[1718113130572,0.1,67130.0,67129.0,0.07727068]
[1718113132066,0.104,67130.0,67129.0,0.07727068]
[1718113132504,0.004,67130.0,67129.0,0.07727068]
[1718113132724,0.1,67137.0,67129.0,0.07727068]
[1718113132725,0.1,67137.0,67133.0,0.148957]
[1718113132932,0.1,67137.0,67134.0,0.07727068]
[1718113133144,0.1,67137.0,67135.0,0.07727068]
[1718113133145,0.1,67136.0,67135.0,0.07727068]
[1718113133565,0.1,67137.0,67135.0,0.07727068]
[1718113133566,0.2,67137.0,67135.0,0.07727068]
[1718113133768,0.1,67137.0,67135.0,0.07727068]
[1718113134018,0.2,67137.0,67136.0,0.07827068]
[1718113134473,0.0396085,67137.0,67136.0,0.07827068]
[1718113136024,0.006,67137.0,67136.0,0.07827068]
[1718113136249,0.0396085,67137.0,67136.0,0.07827068]
[1718113136682,0.0506085,67137.0,67127.0,0.001]
[1718113137121,0.0506085,67137.0,67134.0,0.148955]
[1718113137567,0.011,67137.0,67136.0,0.148951]
[1718113138312,0.009,67137.0,67136.0,0.148951]
[1718113139061,0.0396085,67142.0,67137.0,0.148947]
[1718113139268,0.0396085,67142.0,67140.0,0.02235209]
[1718113139470,0.01022498,67141.0,67140.0,0.02235209]
[1718113139691,0.01022498,67141.0,67140.0,0.00319238]
[1718113139931,0.23022498,67141.0,67140.0,0.00319238]
[1718113140167,0.23022498,67141.0,67136.0,0.005]
[1718113140168,0.2,67138.0,67136.0,0.005]
[1718113140409,0.2,67138.0,67124.0,0.4718]
[1718113140410,0.2,67133.0,67124.0,0.4718]
[1718113140639,0.1587,67132.0,67129.0,0.148964]
[1718113140862,0.2,67127.0,67124.0,0.4718]
[1718113141075,0.2,67125.0,67124.0,0.48972577]
[1718113141506,0.21022498,67125.0,67124.0,0.48972577]
[1718113142155,0.21022498,67125.0,67124.0,0.4718]
[1718113142595,0.41415341,67125.0,67124.0,0.4718]
[1718113142806,0.56865341,67125.0,67124.0,0.4718]
[1718113143225,0.56865341,67125.0,67124.0,0.4738]
[1718113143645,0.56865341,67125.0,67124.0,0.002]
[1718113144001,0.2,67119.0,67113.0,0.149002]
[1718113144202,0.2,67124.0,67113.0,0.149002]
[1718113144445,0.0396085,67123.0,67119.0,0.148987]
[1718113144657,0.01022498,67123.0,67122.0,0.02235852]
[1718113144838,0.01022498,67123.0,67120.0,0.0388]
[1718113145045,0.002,67125.0,67123.0,0.148978]
[1718113145539,0.002,67125.0,67124.0,0.150978]
[1718113145988,0.2,67133.0,67129.0,0.148966]
[1718113146196,0.2,67133.0,67130.0,0.02235535]
[1718113146409,0.0396085,67131.0,67130.0,0.02235535]
[1718113146793,0.0396085,67131.0,67130.0,0.09961522]
[1718113146984,0.0396085,67131.0,67130.0,0.09761522]
[1718113147226,0.0396085,67131.0,67130.0,0.07725987]
[1718113147875,0.41737653,67131.0,67130.0,0.07825987]
[1718113148110,0.63579043,67131.0,67130.0,0.07825987]
[1718113148330,0.4185725,67130.0,67129.0,0.002]
[1718113148555,0.6487945,67120.0,67119.0,0.4718]
[1718113148765,0.5695105,67113.0,67112.0,0.000946]
[1718113148976,0.71383043,67113.0,67112.0,0.000946]
[1718113149455,0.78521347,67113.0,67112.0,0.000946]
[1718113149667,0.79423043,67113.0,67112.0,0.000946]
[1718113149880,0.80423043,67113.0,67112.0,0.000946]
[1718113150129,0.80423043,67113.0,67086.0,0.149061]
[1718113150130,0.2,67096.0,67086.0,0.149061]
[1718113150342,0.2,67097.0,67086.0,0.149061]
[1718113150560,0.2,67097.0,67084.0,0.0817]
[1718113150561,0.2,67094.0,67084.0,0.0817]
[1718113150776,0.0396085,67096.0,67084.0,0.0817]
[1718113150994,0.2,67095.0,67084.0,0.0817]
[1718113151225,0.2,67093.0,67084.0,0.0817]
[1718113151444,0.0406085,67096.0,67086.0,0.007]
[1718113151665,0.001,67096.0,67089.0,0.07215996]
[1718113151912,0.001,67096.0,67095.0,0.1816]
[1718113152775,0.0396085,67101.0,67095.0,0.1816]
[1718113153002,0.0396085,67101.0,67091.0,0.02236643]
[1718113153238,0.001,67096.0,67091.0,0.02236643]
[1718113153450,0.00982029,67100.0,67095.0,0.149042]
[1718113153665,0.2396085,67101.0,67095.0,0.149042]
[1718113153888,0.00982029,67099.0,67095.0,0.151042]
[1718113154101,0.2396085,67101.0,67095.0,0.151042]
[1718113154333,0.2396085,67101.0,67095.0,0.150042]
[1718113154541,0.001,67096.0,67095.0,0.150042]
[1718113155194,0.001,67096.0,67095.0,0.149042]
[1718113155616,0.21082029,67096.0,67091.0,0.008]
[1718113155852,0.2,67093.0,67091.0,0.008]
[1718113156058,0.2,67093.0,67085.0,0.1]
[1718113156267,0.20982029,67092.0,67085.0,0.1]
[1718113156487,0.00982029,67092.0,67085.0,0.1]
[1718113156712,0.00982029,67092.0,67086.0,0.149061]
[1718113156966,0.0396085,67101.0,67087.0,0.1]
[1718113156967,0.2396085,67101.0,67087.0,0.1]
[1718113157177,0.001,67096.0,67091.0,0.006]
[1718113157349,0.0396085,67101.0,67088.0,0.02985]
[1718113157780,0.001,67092.0,67088.0,0.02985]
[1718113158409,0.001,67092.0,67091.0,0.149051]
[1718113158627,0.001,67092.0,67091.0,0.45817093]
[1718113158857,0.001,67092.0,67091.0,0.54097093]
[1718113159287,0.43295979,67114.0,67109.0,0.14901]
[1718113159525,0.43295979,67114.0,67110.0,0.149008]
[1718113159746,0.0396085,67119.0,67110.0,0.149008]
[1718113159967,0.2,67117.0,67110.0,0.149008]
[1718113160195,0.2,67116.0,67110.0,0.149008]
[1718113160400,0.2,67117.0,67110.0,0.149008]
[1718113160868,0.2396085,67119.0,67110.0,0.151008]
[1718113161283,0.0396085,67119.0,67110.0,0.151008]
[1718113161529,0.1608,67120.0,67111.0,0.00084516]
[1718113161700,0.0396085,67123.0,67116.0,0.148995]
[1718113161909,0.0396085,67121.0,67116.0,0.148995]
[1718113162772,0.0396085,67124.0,67117.0,0.148992]
[1718113163002,0.0396085,67123.0,67118.0,0.14899]
[1718113163464,0.001,67121.0,67116.0,0.007]
[1718113163683,0.001,67121.0,67120.0,0.148986]
[1718113164330,0.07215996,67137.0,67120.0,0.148986]
[1718113164331,0.0396085,67135.0,67120.0,0.38601993]
[1718113164545,0.0396085,67135.0,67121.0,0.26731993]
[1718113164793,0.0396085,67135.0,67130.0,0.148962]
[1718113164999,0.01000215,67134.0,67130.0,0.148962]
[1718113166459,0.01800215,67134.0,67130.0,0.148962]
[1718113166682,0.008,67134.0,67130.0,0.148962]
[1718113166885,0.01015849,67133.0,67130.0,0.148962]
[1718113168213,0.01015849,67133.0,67130.0,0.001]
[1718113168897,0.01015849,67133.0,67126.0,0.148973]
[1718113169336,0.01815849,67133.0,67130.0,0.001]
[1718113169562,0.2,67131.0,67130.0,0.001]
[1718113169781,0.01015849,67132.0,67130.0,0.001]
[1718113169998,0.2,67132.0,67130.0,0.001]
[1718113170211,0.008,67133.0,67121.0,0.1]
[1718113170212,0.21015849,67131.0,67121.0,0.1]
[1718113170454,0.01015849,67131.0,67126.0,0.001]
[1718113170671,0.2,67127.0,67126.0,0.001]
[1718113171163,0.01015849,67127.0,67126.0,0.001]
[1718113171404,0.21015849,67127.0,67126.0,0.001]
[1718113172669,0.21015849,67127.0,67121.0,0.01832032]
[1718113172939,0.2,67126.0,67120.0,0.1]
[1718113173161,0.21015849,67127.0,67120.0,0.1]
[1718113173386,0.2,67126.0,67120.0,0.1]
[1718113173606,0.07215996,67122.0,67120.0,0.1]
[1718113174073,0.2,67121.0,67120.0,0.1]
[1718113174074,0.09215996,67122.0,67120.0,0.1]
[1718113174075,0.07215996,67122.0,67120.0,0.1]
[1718113174313,0.27215996,67122.0,67121.0,0.004]
[1718113174467,0.27215996,67122.0,67119.0,0.1]
[1718113174755,0.27215996,67122.0,67120.0,0.001]
[1718113174953,0.2,67121.0,67120.0,0.001]
[1718113175933,0.2,67121.0,67119.0,0.1]
[1718113176140,0.07215996,67122.0,67119.0,0.1]
[1718113176412,0.27215996,67122.0,67120.0,0.006]
[1718113176782,0.27215996,67122.0,67114.0,0.1]
[1718113177012,0.07215996,67122.0,67119.0,0.001]
[1718113177238,0.001,67121.0,67120.0,0.005]
[1718113177678,0.07215996,67122.0,67114.0,0.248999]
[1718113177902,0.07215996,67122.0,67120.0,0.003]
[1718113178112,0.27215996,67122.0,67120.0,0.003]
[1718113178340,0.27215996,67122.0,67120.0,0.001]
[1718113178562,0.27215996,67122.0,67120.0,0.003]
[1718113178785,0.2,67121.0,67120.0,0.003]
[1718113179281,0.27215996,67122.0,67120.0,0.003]
[1718113179511,0.27215996,67122.0,67120.0,0.002]
[1718113179714,0.07215996,67122.0,67120.0,0.002]
[1718113179926,0.27215996,67122.0,67120.0,0.001]
[1718113180141,0.07215996,67122.0,67120.0,0.001]
[1718113180404,0.27215996,67122.0,67120.0,0.003]
[1718113180622,0.27215996,67122.0,67120.0,0.002]
[1718113180818,0.27215996,67122.0,67120.0,0.003]
[1718113181251,0.27215996,67122.0,67120.0,0.001]
[1718113181419,0.27215996,67122.0,67116.0,0.1]
[1718113181622,0.2,67122.0,67120.0,0.002]
[1718113182705,0.2,67122.0,67120.0,0.003]
[1718113183145,0.2,67122.0,67120.0,0.001]
[1718113183547,0.01006201,67121.0,67120.0,0.001]
[1718113184167,0.01006201,67121.0,67120.0,0.003]
[1718113184377,0.1619,67123.0,67120.0,0.001]
[1718113184586,0.1619,67123.0,67118.0,0.1]
[1718113184796,0.01006201,67122.0,67120.0,0.002]
[1718113186092,0.01006201,67122.0,67120.0,0.003]
[1718113186296,0.01006201,67122.0,67120.0,0.001]
[1718113186519,0.22,67121.0,67120.0,0.001]
[1718113186736,0.2,67119.0,67118.0,0.005]
[1718113186934,0.2,67115.0,67113.0,0.149]
[1718113187054,0.2,67117.0,67114.0,0.1]
[1718113187272,0.2,67115.0,67114.0,0.1]
[1718113188760,0.2,67115.0,67113.0,0.149]
[1718113189827,0.201,67115.0,67114.0,0.006]
[1718113190078,0.2,67115.0,67113.0,0.149]
[1718113190499,0.201,67115.0,67113.0,0.155]
[1718113190718,0.2,67115.0,67113.0,0.149]
[1718113190944,0.2,67113.0,67112.0,0.01778201]
[1718113191171,0.22,67113.0,67112.0,0.01778201]
[1718113191394,0.22,67112.0,67111.0,0.02235761]
[1718113191555,0.2,67110.0,67106.0,0.02235761]
[1718113191794,0.2,67110.0,67104.0,0.14902]
[1718113192045,0.2,67109.0,67104.0,0.14902]
[1718113192395,0.2,67109.0,67105.0,0.1180873]
[1718113193195,0.2,67108.0,67105.0,0.1180873]
[1718113193410,0.2,67107.0,67105.0,0.1180873]
[1718113193901,0.22,67106.0,67105.0,0.0240873]
[1718113194109,0.001,67109.0,67105.0,0.0240873]
[1718113194110,0.0396085,67107.0,67105.0,0.0240873]
[1718113194300,0.2,67106.0,67105.0,0.0240873]
[1718113194506,0.2,67106.0,67105.0,0.0180873]
[1718113194831,0.22,67106.0,67105.0,0.001]
[1718113196184,0.22,67106.0,67105.0,0.006]
[1718113196404,0.3736,67106.0,67105.0,0.001]
[1718113197092,0.22,67101.0,67100.0,0.01777246]
[1718113197304,0.22,67101.0,67097.0,0.1]
[1718113197504,0.22,67101.0,67097.0,0.11755411]
[1718113197713,0.2,67099.0,67097.0,0.11755411]
[1718113198142,0.2596085,67098.0,67097.0,0.01755411]
[1718113198352,0.22,67091.0,67087.0,0.14906]
[1718113198564,0.22,67091.0,67086.0,0.52400761]
[1718113198565,0.48062843,67091.0,67086.0,0.02235761]
[1718113198795,0.79397943,67091.0,67080.0,0.49415761]
[1718113199014,0.79397943,67091.0,67080.0,0.4718]
[1718113199015,0.80389505,67091.0,67080.0,0.4718]
[1718113200837,0.2331,67079.0,67070.0,0.02235761]
[1718113201055,0.2,67078.0,67069.0,0.02235761]
[1718113201272,0.57741993,67079.0,67066.0,0.04088455]
[1718113201499,0.57741993,67079.0,67070.0,0.15465246]
[1718113201500,0.2,67077.0,67070.0,0.15465246]
[1718113201719,0.2,67072.0,67067.0,0.15465246]
[1718113201990,0.2,67073.0,67068.0,0.15465246]
[1718113202211,0.2,67073.0,67069.0,0.25465246]
[1718113202708,0.24917103,67072.0,67066.0,0.04088455]
[1718113202710,0.22,67071.0,67070.0,0.15465131]
[1718113202928,0.22,67071.0,67065.0,0.009416]
[1718113202929,0.4087125,67067.0,67065.0,0.009416]
[1718113203149,0.42617109,67066.0,67065.0,0.009416]
[1718113203367,0.57005355,67066.0,67065.0,0.009416]
[1718113203587,0.66216232,67066.0,67065.0,0.009416]
[1718113204471,0.62632,67060.0,67059.0,0.009416]
[1718113204710,1.18251257,67060.0,67059.0,0.009416]
[1718113204925,0.6563345,67057.0,67056.0,0.009416]
[1718113205136,1.32322736,67057.0,67056.0,0.009416]
[1718113205339,1.37462437,67057.0,67056.0,0.009416]
[1718113205562,1.37462437,67057.0,67044.0,0.00086]
[1718113205563,0.7170205,67052.0,67044.0,0.00086]
[1718113205782,1.28014043,67052.0,67044.0,0.00086]
[1718113206217,1.28970296,67052.0,67044.0,0.00086]
[1718113206655,0.7970555,67047.0,67044.0,0.00086]
[1718113206866,1.36717543,67047.0,67044.0,0.00086]
[1718113207119,1.60789328,67047.0,67044.0,0.00086]
[1718113207344,1.61690878,67047.0,67044.0,0.00086]
[1718113207606,0.2596085,67023.0,67022.0,0.009416]
[1718113207815,0.79643043,67023.0,67022.0,0.009416]
[1718113208039,1.08653434,67023.0,67022.0,0.009416]
[1718113208735,1.38493934,67023.0,67022.0,0.009416]
[1718113208957,1.38493934,67023.0,66993.0,0.01432029]
[1718113208958,0.5048085,67001.0,66997.0,0.00856]
[1718113209178,0.63912843,67001.0,66997.0,0.00856]
[1718113209405,0.62762128,67001.0,66997.0,0.00856]
[1718113209622,0.64762128,67001.0,66997.0,0.00856]
[1718113210466,0.64762128,67001.0,67000.0,0.013]
[1718113211355,0.65762128,67001.0,67000.0,0.013]
[1718113211563,0.64762128,67001.0,67000.0,0.013]
[1718113211787,0.65962128,67001.0,67000.0,0.013]
[1718113212260,0.64962128,67001.0,67000.0,0.013]
[1718113212678,0.65962128,67001.0,67000.0,0.013]
[1718113212890,0.64962128,67001.0,67000.0,0.013]
[1718113213098,0.64962128,67001.0,67000.0,0.01]
[1718113213309,0.56167228,67001.0,67000.0,0.01]
[1718113213516,0.56667228,67001.0,67000.0,0.01]
[1718113213694,0.56167228,67001.0,67000.0,0.01086]
[1718113214141,0.00849285,67001.0,67000.0,0.01086]
[1718113214354,0.04810135,67001.0,67000.0,0.01086]
[1718113214572,0.24810135,67001.0,67000.0,0.03386]
[1718113214842,0.04810135,67001.0,67000.0,0.03686]
[1718113215050,0.05010135,67001.0,67000.0,0.03486]
[1718113215264,0.01049285,67001.0,67000.0,0.03486]
[1718113215481,0.05010135,67001.0,67000.0,0.03486]
[1718113215695,0.00849285,67001.0,67000.0,0.03386]
[1718113215936,0.0396085,67006.0,67000.0,0.03386]
[1718113216180,0.0396085,67006.0,67001.0,0.023]
[1718113216399,0.00815202,67005.0,67004.0,0.149244]
[1718113216621,0.00815202,67005.0,67004.0,0.1002]
[1718113216871,0.02,67011.0,67000.0,0.01086]
[1718113216872,0.2,67001.0,67000.0,0.01086]
[1718113217094,0.2,67001.0,67000.0,0.01186]
[1718113217335,0.22,67001.0,67000.0,0.01586]
[1718113217563,0.22,67001.0,67000.0,0.01186]
[1718113217797,0.20815202,67001.0,67000.0,0.01186]
[1718113218026,0.00815202,67001.0,67000.0,0.01186]
[1718113218467,0.0396085,67003.0,67000.0,0.01086]
[1718113218723,0.00815202,67001.0,67000.0,0.03386]
[1718113219709,0.00915202,67001.0,67000.0,0.03886]
[1718113220193,0.00815202,67001.0,67000.0,0.183113]
[1718113220417,0.00915202,67001.0,67000.0,0.187113]
[1718113220925,0.20815202,67001.0,67000.0,0.03386]
[1718113221048,0.20815202,67001.0,67000.0,0.03786]
[1718113221049,0.20915202,67001.0,67000.0,0.03786]
[1718113221326,0.20915202,67001.0,67000.0,0.03386]
[1718113221520,0.35347195,67001.0,67000.0,0.01086]
[1718113221739,0.20915202,67001.0,67000.0,0.01086]
[1718113222428,0.22915202,67001.0,67000.0,0.01186]
[1718113222862,0.21015202,67001.0,67000.0,0.01486]
[1718113223298,0.00815202,67001.0,67000.0,0.01186]
[1718113223523,0.00915202,67001.0,67000.0,0.01586]
[1718113223738,0.20915202,67001.0,67000.0,0.01486]
[1718113223965,0.41308045,67001.0,67000.0,0.01486]
[1718113224204,0.57288045,67001.0,67000.0,0.01586]
[1718113224427,0.72113145,67001.0,67000.0,0.01186]
[1718113224668,1.03063445,67001.0,67000.0,0.01586]
[1718113224889,1.13063445,67001.0,67000.0,0.01586]
[1718113225340,0.82213145,67001.0,67000.0,0.01586]
[1718113225555,0.72213145,67001.0,67000.0,0.01486]
[1718113226000,0.26876052,67001.0,67000.0,0.01586]
[1718113226210,0.24876052,67001.0,67000.0,0.01586]
[1718113226469,0.26876052,67001.0,67000.0,0.01486]
[1718113226661,0.24776052,67001.0,67000.0,0.01086]
[1718113226879,0.04976052,67001.0,67000.0,0.01186]
[1718113227092,0.04976052,67001.0,67000.0,0.17069179]
[1718113227093,0.05076052,67001.0,67000.0,0.17069179]
[1718113227312,0.04976052,67001.0,67000.0,0.16669179]
[1718113227538,0.24976052,67001.0,67000.0,0.16669179]
[1718113227897,0.04876052,67001.0,67000.0,0.16568426]
[1718113228109,0.0406085,67001.0,67000.0,0.16568426]
[1718113228333,0.04888212,67001.0,67000.0,0.16568426]
[1718113228558,0.24888212,67001.0,67000.0,0.16568426]
[1718113228773,0.04888212,67001.0,67000.0,0.16568426]
[1718113228985,0.00927362,67001.0,67000.0,0.18868426]
[1718113229208,0.00927362,67001.0,67000.0,0.27178426]
[1718113229410,0.00927362,67001.0,67000.0,0.34919324]
[1718113229632,0.001,67001.0,67000.0,0.56115621]
[1718113229858,0.003,67001.0,67000.0,0.72005621]
[1718113230076,0.003,67001.0,67000.0,0.86930921]
[1718113230317,0.0396085,67007.0,67002.0,0.149248]
[1718113230522,0.0396085,67004.0,67003.0,0.17782426]
[1718113230732,0.2,67011.0,67003.0,0.17782426]
[1718113230951,0.0396085,67004.0,67003.0,0.023]
[1718113231169,0.0396085,67007.0,67003.0,0.32706243]
[1718113231377,0.0396085,67004.0,67003.0,0.17781543]
[1718113231605,0.2596085,67004.0,67003.0,0.15481546]
[1718113232142,0.2596085,67004.0,67003.0,0.36677843]
[1718113232400,0.0396085,67004.0,67003.0,0.36977843]
[1718113232620,0.86363239,67004.0,67003.0,0.36977843]
[1718113232920,0.86363239,67004.0,67003.0,0.15781546]
[1718113232921,0.95019563,67004.0,67003.0,0.15781546]
[1718113233120,0.96019563,67004.0,67003.0,0.15781546]
[1718113233581,1.25868463,67004.0,67003.0,0.15781546]
[1718113233811,1.26068463,67004.0,67003.0,0.15781546]
[1718113234306,1.26068463,67004.0,67003.0,0.15481546]
[1718113234762,1.25368463,67004.0,67003.0,0.15481546]
[1718113234979,1.25868463,67004.0,67003.0,0.15481546]
[1718113235199,1.26068463,67004.0,67003.0,0.15481546]
[1718113235402,1.27368463,67004.0,67003.0,0.15481546]
[1718113236067,1.37368463,67004.0,67003.0,0.15481546]
[1718113236503,1.40680193,67004.0,67003.0,0.15481546]
[1718113236937,1.39980193,67004.0,67003.0,0.15581546]
[1718113237157,0.93258973,67004.0,67003.0,0.15581546]
[1718113237374,0.92047243,67004.0,67003.0,0.15581546]
[1718113237588,0.89147243,67004.0,67003.0,0.15481546]
[1718113237803,0.89747243,67004.0,67003.0,0.15581546]
[1718113238001,1.01021967,67004.0,67003.0,0.15581546]
[1718113238220,0.99621967,67004.0,67003.0,0.15581546]
[1718113238438,0.99021967,67004.0,67003.0,0.15481546]
[1718113239255,1.00321967,67004.0,67003.0,0.15481546]
[1718113239882,1.00721967,67004.0,67003.0,0.15581546]
[1718113240301,0.42092843,67004.0,67003.0,0.15581546]
[1718113240517,0.42092843,67004.0,67003.0,0.36346291]
[1718113240756,0.55317243,67004.0,67003.0,0.36246291]
[1718113240982,0.34317243,67004.0,67003.0,0.36246291]
[1718113241198,0.0636085,67004.0,67003.0,0.36346291]
[1718113241429,0.2636085,67004.0,67003.0,0.36346291]
[1718113241890,0.2616085,67004.0,67003.0,0.36246291]
[1718113242761,0.2416085,67004.0,67003.0,0.36246291]
[1718113243182,0.2616085,67004.0,67003.0,0.36246291]
[1718113243401,0.0456085,67004.0,67003.0,0.36346291]
[1718113243603,0.05511612,67004.0,67003.0,0.36346291]
[1718113244032,0.25511612,67004.0,67003.0,0.36346291]
[1718113244433,0.05511612,67004.0,67003.0,0.36346291]
[1718113244638,0.01550762,67004.0,67003.0,0.62546291]
[1718113245045,0.006,67004.0,67003.0,0.62546291]
[1718113245764,0.006,67004.0,67003.0,0.87358644]
[1718113246198,0.006,67004.0,67003.0,1.02283344]
[1718113246874,0.006,67004.0,67003.0,1.02183344]
[1718113246875,0.002,67004.0,67003.0,1.02183344]
[1718113247112,0.0396085,67005.0,67003.0,1.02183344]
[1718113247321,0.0396085,67005.0,67004.0,0.38992671]
[1718113247535,0.2396085,67005.0,67004.0,0.36692671]
[1718113247739,0.2596085,67005.0,67004.0,0.36692671]
[1718113247957,0.26911612,67005.0,67004.0,0.36692671]
[1718113248195,0.41835812,67005.0,67004.0,0.36692671]
[1718113248413,0.41835812,67005.0,67004.0,0.61058644]
[1718113248635,0.56267805,67005.0,67004.0,0.61058644]
[1718113248871,0.56267805,67005.0,67004.0,0.61658644]
[1718113248872,0.56367805,67005.0,67004.0,0.61658644]
[1718113249085,0.86684586,67005.0,67004.0,0.61658644]
[1718113249297,1.16533086,67005.0,67004.0,0.61658644]
[1718113249541,1.16533086,67005.0,67004.0,0.37292671]
[1718113249984,1.16533086,67005.0,67004.0,0.16080229]
[1718113250195,1.24433086,67005.0,67004.0,0.15680229]
[1718113250409,1.04584586,67005.0,67004.0,0.15480229]
[1718113250623,0.4088595,67001.0,67000.0,0.01086]
[1718113250834,0.55317943,67001.0,67000.0,0.16571783]
[1718113251057,0.56273487,67001.0,67000.0,0.16571783]
[1718113253544,0.05416394,67001.0,67000.0,0.18871783]
[1718113253771,0.05816394,67001.0,67000.0,0.18971783]
[1718113253984,0.05316394,67001.0,67000.0,0.18971783]
[1718113254200,0.05416394,67001.0,67000.0,0.18971783]
[1718113254640,0.05316394,67001.0,67000.0,0.18971783]
[1718113254858,0.24816394,67001.0,67000.0,0.16571783]
[1718113255071,0.26816394,67001.0,67000.0,0.16571783]
[1718113255294,0.26816394,67001.0,67000.0,0.17071783]
[1718113255295,0.27316394,67001.0,67000.0,0.17071783]
[1718113255722,0.56673487,67001.0,67000.0,0.17071783]
[1718113256591,0.56673487,67001.0,67000.0,0.1706959]
[1718113257268,0.56573487,67001.0,67000.0,0.1666959]
[1718113257483,0.56273487,67001.0,67000.0,0.1696959]
[1718113257929,0.56173487,67001.0,67000.0,0.01086]